bitfinex/quotes_SOLUSD_20220113
["timestamp","ask_amount","ask_price","bid_price","bid_amount"]
[1642036471606,26.1387,151.12,151.03,0.26]
[1642036472399,26.1387,151.12,151.03,1.87722034]
[1642036472801,26.1387,151.12,151.03,2.12722034]
[1642036474201,66.34,151.11,151.03,2.12722034]
[1642036474701,66.59,151.11,151.03,2.12722034]
[1642036475003,66.59,151.11,151.03,1.61722034]
[1642036475202,66.59,151.11,151.0,4.26322034]
[1642036475203,0.26,151.1,151.0,4.26322034]
[1642036475402,66.34,151.09,150.99,1.87900948]
[1642036475602,2.648,151.08,151.0,6.0]
[1642036475802,2.908,151.08,151.0,6.0]
[1642036476002,2.898,151.08,150.99,1.87900948]
[1642036476302,0.25,151.08,150.97,2.648]
[1642036476505,25.44108605,151.07,150.97,2.648]
[1642036476703,25.44108605,151.07,150.96,6.14422982]
[1642036476704,28.33908605,151.07,150.96,6.14422982]
[1642036476901,0.26,151.06,150.97,6.0]
[1642036477303,25.69108605,151.07,150.97,6.0]
[1642036477804,25.69108605,151.07,150.98,0.26]
[1642036478003,0.26,151.06,150.98,0.26]
[1642036478405,66.6,151.06,150.98,0.26]
[1642036478805,66.85,151.06,150.98,0.26]
[1642036482411,66.59,151.06,150.97,6.25]
[1642036483811,0.26,151.05,150.97,6.25]
[1642036486241,66.34,151.06,150.98,4.26522034]
[1642036486437,66.34,151.06,150.98,4.52522034]
[1642036486639,22.8268,151.06,150.99,7.61722034]
[1642036486840,22.8268,151.06,151.0,2.648]
[1642036487037,22.8268,151.06,151.0,2.908]
[1642036487240,22.8268,151.06,151.0,2.648]
[1642036487444,23.0768,151.06,150.97,4.26522034]
[1642036487639,2.648,151.05,150.94,36.09253059]
[1642036487839,66.34,151.04,150.96,1.87900948]
[1642036488039,66.34,151.04,150.97,6.0]
[1642036488241,66.59,151.04,150.97,6.0]
[1642036488441,0.26,151.03,150.97,6.0]
[1642036488843,66.59,151.04,150.97,6.0]
[1642036489044,66.59,151.04,150.98,0.26]
[1642036489544,90.1439,151.03,150.97,0.25]
[1642036489741,90.3939,151.03,150.96,0.26]
[1642036489941,90.3939,151.03,150.96,2.909]
[1642036490143,90.3939,151.03,150.97,6.0]
[1642036490643,90.3939,151.03,150.98,0.26]
[1642036491245,90.3939,151.03,150.97,6.25]
[1642036491446,90.3939,151.03,150.98,0.26]
[1642036491945,90.3939,151.03,150.97,0.51]
[1642036492148,90.3939,151.03,150.97,0.26]
[1642036496951,90.3939,151.03,150.97,2.13900948]
[1642036497151,90.3939,151.03,150.98,6.0]
[1642036498653,90.1439,151.03,150.98,6.25]
[1642036501461,23.8039,151.03,150.98,6.25]
[1642036501662,74.8863,151.06,150.99,4.52522034]
[1642036502062,74.8863,151.06,151.0,7.61722034]
[1642036502264,74.8863,151.06,151.0,7.86722034]
[1642036502462,74.8863,151.06,151.01,0.26]
[1642036502665,23.471,151.07,151.01,26.44480258]
[1642036502866,23.721,151.07,151.01,26.44480258]
[1642036503091,23.721,151.07,151.02,6.0]
[1642036503692,23.471,151.07,151.02,6.0]
[1642036503894,89.811,151.07,151.02,6.25]
[1642036507396,23.471,151.07,151.02,6.25]
[1642036507602,22.8828,151.09,151.03,0.26]
[1642036507797,101.76363485,151.13,151.03,4.52522034]
[1642036508004,4.46573485,151.13,151.04,7.61722034]
[1642036508196,4.71573485,151.13,151.04,1.61722034]
[1642036508397,27.28584573,151.12,151.05,6.26]
[1642036508798,27.53584573,151.12,151.05,6.26]
[1642036508999,27.53584573,151.12,151.06,6.0]
[1642036509600,27.53584573,151.12,151.05,0.26]
[1642036509800,27.53584573,151.12,151.04,0.26]
[1642036510098,66.6,151.11,151.05,6.0]
[1642036510298,69.496,151.11,151.02,4.52500948]
[1642036510501,24.8765,151.1,151.02,4.52500948]
[1642036510697,2.646,151.09,151.02,4.52500948]
[1642036510899,66.6,151.09,151.02,4.52500948]
[1642036511099,66.85,151.09,151.02,2.646]
[1642036511299,69.498,151.09,151.01,1.87900948]
[1642036511498,23.3872,151.08,151.02,0.26]
[1642036511701,23.6372,151.08,151.02,0.26]
[1642036511900,66.34,151.07,151.02,0.26]
[1642036512099,30.78948592,151.06,151.02,0.26]
[1642036512300,30.78948592,151.06,151.01,0.51]
[1642036512699,30.78948592,151.06,151.01,0.26]
[1642036513002,23.6372,151.08,151.01,0.26]
[1642036514101,23.6372,151.08,151.0,6.26]
[1642036514302,23.6372,151.08,151.0,6.51]
[1642036514707,75.9212,151.11,151.01,1.61722034]
[1642036514902,73.2732,151.11,151.02,2.906]
[1642036515103,73.2732,151.11,151.02,8.906]
[1642036515303,73.2732,151.11,151.03,1.61722034]
[1642036515607,73.2732,151.11,151.04,23.51074299]
[1642036516005,73.5232,151.11,151.04,23.76074299]
[1642036516804,2.646,151.13,151.04,23.76074299]
[1642036517005,22.5091,151.14,151.05,2.646]
[1642036517205,66.34,151.13,151.05,2.896]
[1642036517406,66.34,151.13,151.06,0.26]
[1642036517806,23.3679,151.12,151.06,0.26]
[1642036518209,23.6179,151.12,151.06,0.26]
[1642036518411,23.6179,151.12,151.05,0.26]
[1642036520113,23.3679,151.12,151.05,0.26]
[1642036520511,23.6179,151.12,151.05,0.26]
[1642036522414,66.34,151.11,151.05,0.26]
[1642036522816,66.59,151.11,151.05,0.26]
[1642036523221,0.25,151.11,151.05,0.26]
[1642036523715,2.646,151.11,151.05,0.26]
[1642036525022,89.9579,151.12,151.05,0.26]
[1642036525219,89.4579,151.12,151.05,0.26]
[1642036525619,89.2079,151.12,151.05,0.26]
[1642036525923,89.4579,151.12,151.05,0.26]
[1642036527421,89.4579,151.12,151.04,0.26]
[1642036528528,89.4579,151.12,151.03,0.51]
[1642036528723,2.646,151.11,151.03,0.51]
[1642036529124,2.896,151.11,151.03,0.51]
[1642036529354,2.896,151.11,151.03,0.26]
[1642036529524,46.9247685,151.1,151.03,0.26]
[1642036529724,47.1747685,151.1,151.03,0.26]
[1642036531725,46.9247685,151.1,151.03,0.26]
[1642036532124,23.7636,151.1,151.03,0.26]
[1642036532725,23.7636,151.1,151.03,2.906]
[1642036533025,23.7636,151.1,151.03,4.78500948]
[1642036533224,23.7636,151.1,151.03,5.03500948]
[1642036534424,23.7636,151.1,151.03,2.12900948]
[1642036534825,66.34,151.09,151.03,2.12900948]
[1642036535224,66.59,151.09,151.03,2.12900948]
[1642036535627,66.59,151.09,151.03,0.25]
[1642036535825,66.59,151.09,151.04,0.26]
[1642036536026,66.59,151.09,151.03,0.26]
[1642036537026,66.59,151.09,151.02,0.26]
[1642036537227,66.59,151.09,151.01,4.52500948]
[1642036537427,66.34,151.07,151.01,1.87900948]
[1642036537828,66.59,151.07,151.01,1.87900948]
[1642036538028,66.34,151.05,151.01,1.87900948]
[1642036538229,66.59,151.05,151.0,1.87900948]
[1642036538428,66.59,151.05,151.01,0.26]
[1642036538830,66.59,151.05,151.0,1.87900948]
[1642036539330,66.59,151.05,150.99,1.87900948]
[1642036539731,66.59,151.05,150.99,2.12900948]
[1642036539931,66.59,151.05,150.99,1.87900948]
[1642036540133,69.238,151.05,150.99,1.87900948]
[1642036540332,0.26,151.04,150.99,1.87900948]
[1642036540533,2.648,151.03,150.99,1.87900948]
[1642036540731,2.898,151.03,150.99,1.87900948]
[1642036540933,6.26,151.02,150.99,1.87900948]
[1642036541133,6.51,151.02,150.99,1.87900948]
[1642036541338,6.06439994,151.01,150.99,1.87900948]
[1642036541734,6.31439994,151.01,150.99,1.87900948]
[1642036542234,6.31439994,151.01,150.96,2.648]
[1642036542434,6.31439994,151.01,150.95,1.87900948]
[1642036542634,6.31439994,151.01,150.95,2.12900948]
[1642036542835,6.31439994,151.01,150.96,0.26]
[1642036543935,3.28219997,151.01,150.96,0.26]
[1642036545766,3.28219997,151.01,150.94,2.38900948]
[1642036548968,30.66153172,151.0,150.94,2.38900948]
[1642036549169,97.25153172,151.0,150.94,2.38900948]
[1642036549970,30.91153172,151.0,150.94,2.38900948]
[1642036550369,30.91153172,151.0,150.94,0.51]
[1642036550773,30.91153172,151.0,150.94,0.26]
[1642036552176,23.9585,151.0,150.94,0.26]
[1642036555184,66.34,150.99,150.94,0.26]
[1642036555385,74.989,150.99,150.93,0.26]
[1642036555609,6.25,150.99,150.93,0.26]
[1642036557391,72.59,150.99,150.93,0.26]
[1642036557890,72.59,150.99,150.91,1.87900948]
[1642036558090,2.649,150.98,150.91,1.87900948]
[1642036558290,25.5777,150.98,150.91,1.87900948]
[1642036558490,6.0,150.97,150.91,1.87900948]
[1642036558689,6.25,150.97,150.91,1.87900948]
[1642036558890,0.25,150.97,150.91,1.87900948]
[1642036559290,0.25,150.97,150.92,0.26]
[1642036560094,66.34,150.97,150.91,0.26]
[1642036560294,66.59,150.97,150.91,0.26]
[1642036560493,25.3277,150.98,150.91,0.26]
[1642036560693,22.6787,150.98,150.91,0.26]
[1642036560894,2.649,151.0,150.91,0.26]
[1642036561097,2.649,151.02,150.92,2.649]
[1642036561295,22.6364,151.03,150.92,2.649]
[1642036561495,25.2854,151.03,150.93,6.26]
[1642036561695,25.2854,151.03,150.93,6.51]
[1642036562194,25.2854,151.03,150.93,8.38900948]
[1642036562596,25.5354,151.03,150.93,8.38900948]
[1642036563219,0.26,151.02,150.93,8.38900948]
[1642036563418,2.649,151.01,150.93,8.38900948]
[1642036563617,27.70746338,151.0,150.93,1.87900948]
[1642036563819,46.11646338,151.0,150.93,1.87900948]
[1642036564019,66.6,150.99,150.93,1.87900948]
[1642036564216,66.6,150.99,150.88,10.0741]
[1642036564217,2.649,150.98,150.92,1.87900948]
[1642036564417,66.6,150.97,150.92,1.87900948]
[1642036564617,2.649,150.96,150.92,1.87900948]
[1642036565020,0.26,150.95,150.92,1.87900948]
[1642036565218,6.06439994,150.94,150.92,1.87900948]
[1642036565419,72.40439994,150.94,150.88,29.68380156]
[1642036565623,72.65439994,150.94,150.89,6.0]
[1642036565819,72.65439994,150.94,150.89,6.26]
[1642036566221,72.65439994,150.94,150.89,6.0]
[1642036566619,103.38595874,150.94,150.88,6.0]
[1642036566820,72.65439994,150.94,150.88,6.0]
[1642036567422,72.65439994,150.94,150.89,0.26]
[1642036568624,72.65439994,150.94,150.88,7.87900948]
[1642036569022,72.65439994,150.94,150.88,1.87900948]
[1642036569223,0.26,150.93,150.88,1.87900948]
[1642036569429,0.26,150.93,150.87,1.87900948]
[1642036569823,0.26,150.93,150.87,2.12900948]
[1642036571726,66.35,150.94,150.87,2.12900948]
[1642036572734,66.35,150.94,150.87,0.25]
[1642036573132,66.35,150.94,150.86,2.12900948]
[1642036573330,0.26,150.93,150.86,2.12900948]
[1642036573635,27.62230247,150.92,150.86,2.12900948]
[1642036573931,27.62230247,150.92,150.86,1.87900948]
[1642036573932,0.26,150.91,150.86,1.87900948]
[1642036574130,66.36,150.91,150.86,1.87900948]
[1642036574529,66.61,150.91,150.86,1.87900948]
[1642036575130,66.61,150.91,150.84,1.87900948]
[1642036575332,66.61,150.91,150.84,8.13900948]
[1642036575529,66.58,150.91,150.84,2.13900948]
[1642036576131,66.58,150.91,150.84,2.38900948]
[1642036576731,0.25,150.91,150.84,4.01600372]
[1642036576933,0.25,150.91,150.84,2.13699424]
[1642036577133,27.1149,150.93,150.84,2.13699424]
[1642036577336,24.4649,150.93,150.84,4.78699424]
[1642036577938,24.4649,150.93,150.84,6.66600372]
[1642036579837,27.1149,150.93,150.84,4.01600372]
[1642036580137,27.1149,150.93,150.85,1.87900948]
[1642036580339,26.8649,150.93,150.85,2.12900948]
[1642036580540,26.8649,150.93,150.86,0.26]
[1642036580738,24.4649,150.93,150.86,0.26]
[1642036581339,0.25,150.93,150.86,0.26]
[1642036581539,27.5176,150.95,150.86,0.26]
[1642036581739,24.8676,150.95,150.87,1.62699424]
[1642036581973,24.8676,150.95,150.88,0.26]
[1642036582370,24.8676,150.95,150.88,26.96016956]
[1642036582572,24.8676,150.95,150.88,27.21016956]
[1642036582972,24.8676,150.95,150.89,2.65]
[1642036583176,77.0392,150.98,150.89,4.77900948]
[1642036583373,23.538,150.97,150.9,0.26]
[1642036583774,23.788,150.97,150.9,0.26]
[1642036586078,23.538,150.97,150.9,0.26]
[1642036586278,23.538,150.97,150.9,3.76600372]
[1642036586579,2.65,151.0,150.9,9.76600372]
[1642036586877,9.5,151.03,150.9,10.01600372]
[1642036586878,113.6324,151.03,150.9,10.01600372]
[1642036587280,30.24244352,151.02,150.91,1.87900948]
[1642036587481,32.89144352,151.02,150.92,0.26]
[1642036587681,24.7401,151.01,150.92,0.26]
[1642036587881,2.649,151.0,150.91,1.87900948]
[1642036588079,6.0,150.99,150.91,1.87900948]
[1642036588283,2.649,150.98,150.91,1.87900948]
[1642036588478,6.26,150.97,150.91,1.87900948]
[1642036588678,6.0,150.97,150.91,1.87900948]
[1642036588881,0.25,150.97,150.91,1.87900948]
[1642036589080,66.85,150.97,150.91,2.12900948]
[1642036589481,66.85,150.97,150.91,0.25]
[1642036589687,66.34,150.95,150.89,4.77900948]
[1642036589880,66.34,150.95,150.89,2.12900948]
[1642036591384,30.02125987,150.96,150.89,2.12900948]
[1642036591982,30.02125987,150.96,150.89,1.87900948]
[1642036592186,30.27125987,150.96,150.89,1.87900948]
[1642036592383,30.27125987,150.96,150.9,0.26]
[1642036592584,68.99,150.95,150.9,0.26]
[1642036592785,69.24,150.95,150.9,0.26]
[1642036593185,68.99,150.95,150.89,1.87900948]
[1642036593391,0.26,150.94,150.89,1.87900948]
[1642036593587,2.65,150.93,150.89,1.87900948]
[1642036593784,2.9,150.93,150.89,1.87900948]
[1642036593985,6.0,150.92,150.89,1.87900948]
[1642036594187,6.06439994,150.91,150.89,1.87900948]
[1642036594786,6.06439994,150.91,150.86,1.87900948]
[1642036594989,66.34,150.9,150.86,1.87900948]
[1642036595287,94.52396654,150.9,150.86,2.12900948]
[1642036595486,28.18396654,150.9,150.86,2.12900948]
[1642036596191,0.25,150.92,150.86,2.12900948]
[1642036596587,2.9,150.93,150.86,2.12900948]
[1642036596987,0.26,150.92,150.86,2.12900948]
[1642036597188,66.6,150.92,150.86,2.12900948]
[1642036597688,66.85,150.92,150.86,2.12900948]
[1642036597886,66.85,150.92,150.86,1.87900948]
[1642036598288,2.65,150.91,150.86,1.87900948]
[1642036598489,0.26,150.9,150.86,1.87900948]
[1642036599187,0.26,150.9,150.85,1.87900948]
[1642036599389,66.6,150.9,150.85,1.87900948]
[1642036599789,66.85,150.9,150.85,1.87900948]
[1642036599989,0.25,150.9,150.85,1.87900948]
[1642036600190,2.9,150.91,150.85,2.12900948]
[1642036600392,0.25,150.91,150.85,2.12900948]
[1642036600792,0.51,150.91,150.85,2.12900948]
[1642036601690,65.68331599,150.91,150.85,2.12900948]
[1642036601894,63.49172859,150.91,150.85,2.12900948]
[1642036604594,0.25,150.91,150.86,32.0935808]
[1642036604995,23.9701,150.92,150.86,32.0935808]
[1642036605396,23.9701,150.92,150.86,33.97259028]
[1642036605596,23.9701,150.92,150.86,2.13900948]
[1642036606198,23.7201,150.92,150.86,2.38900948]
[1642036606597,23.7201,150.92,150.86,1.87900948]
[1642036606801,2.91,150.91,150.86,1.87900948]
[1642036607000,8.91,150.91,150.86,1.87900948]
[1642036607703,9.16,150.91,150.84,1.87900948]
[1642036607899,90.865,150.9,150.84,1.87900948]
[1642036608124,2.65,150.89,150.84,1.87900948]
[1642036608325,2.91,150.89,150.84,1.87900948]
[1642036608628,3.16,150.89,150.84,1.87900948]
[1642036609024,69.5,150.89,150.81,1.87900948]
[1642036609226,69.5,150.89,150.81,2.12900948]
[1642036610429,69.5,150.89,150.82,0.26]
[1642036612530,69.5,150.89,150.81,0.51]
[1642036612730,69.5,150.89,150.81,0.26]
[1642036614033,66.85,150.89,150.81,0.26]
[1642036616834,66.34,150.89,150.81,0.26]
[1642036617034,63.453375,150.89,150.81,0.26]
[1642036617636,63.453375,150.89,150.8,4.52900948]
[1642036617838,18.15,150.88,150.8,1.87900948]
[1642036618036,23.9129,150.87,150.8,1.87900948]
[1642036618336,33.6629,150.87,150.8,1.87900948]
[1642036618536,0.26,150.86,150.8,1.87900948]
[1642036618735,26.6229782,150.86,150.8,1.87900948]
[1642036618936,32.6229782,150.86,150.8,1.87900948]
[1642036619138,32.8729782,150.86,150.8,1.87900948]
[1642036619838,96.0763532,150.86,150.78,1.87900948]
[1642036620041,23.9992,150.85,150.78,1.87900948]
[1642036620239,24.2492,150.85,150.78,1.87900948]
[1642036621039,24.2492,150.85,150.79,0.26]
[1642036622238,24.2492,150.85,150.78,1.63900948]
[1642036622438,26.9012,150.85,150.78,1.63900948]
[1642036622641,0.26,150.84,150.78,1.63900948]
[1642036623039,24.2492,150.85,150.75,6.41136441]
[1642036623239,24.2492,150.85,150.75,6.66136441]
[1642036623838,24.2492,150.85,150.76,3.77554793]
[1642036624240,24.2492,150.85,150.77,0.26]
[1642036626140,24.2492,150.85,150.77,6.26]
[1642036626740,24.2492,150.85,150.77,6.51]
[1642036626941,24.2492,150.85,150.77,0.51]
[1642036627144,24.2492,150.85,150.78,6.0]
[1642036627341,24.2492,150.85,150.77,0.51]
[1642036627642,24.2492,150.85,150.77,0.26]
[1642036627844,23.9992,150.85,150.77,0.26]
[1642036628642,23.9992,150.85,150.78,2.652]
[1642036629043,23.9992,150.85,150.79,6.26]
[1642036629243,23.9992,150.85,150.79,6.51]
[1642036629643,23.9992,150.85,150.79,0.51]
[1642036629844,23.9992,150.85,150.8,6.0]
[1642036630045,23.9992,150.85,150.81,0.26]
[1642036630248,23.9992,150.85,150.79,0.51]
[1642036630448,23.9992,150.85,150.79,0.26]
[1642036635579,23.9992,150.85,150.78,0.26]
[1642036635979,23.9992,150.85,150.78,6.26]
[1642036636283,23.9992,150.85,150.78,6.51]
[1642036636678,23.9992,150.85,150.79,3.78242205]
[1642036637083,23.9992,150.85,150.8,0.26]
[1642036638984,23.9992,150.85,150.79,0.26]
[1642036650596,2.652,150.86,150.79,0.26]
[1642036650797,2.902,150.86,150.8,30.7431592]
[1642036650998,77.6715,150.87,150.81,0.26]
[1642036651300,77.9215,150.87,150.81,0.26]
[1642036652399,75.2715,150.87,150.81,0.26]
[1642036653702,75.2715,150.87,150.8,0.25]
[1642036654200,75.2715,150.87,150.79,6.25]
[1642036654702,75.2715,150.87,150.79,36.65724668]
[1642036654901,22.7998,150.86,150.79,36.65724668]
[1642036655900,22.7998,150.86,150.8,0.26]
[1642036660402,0.26,150.85,150.78,6.40936441]
[1642036660629,0.26,150.85,150.78,3.75936441]
[1642036660803,0.26,150.85,150.79,0.26]
[1642036663406,0.26,150.85,150.78,0.25]
[1642036663608,0.26,150.85,150.77,6.26]
[1642036663807,0.26,150.85,150.77,0.26]
[1642036664011,0.26,150.85,150.77,6.51]
[1642036664712,2.652,150.84,150.77,6.51]
[1642036665313,2.652,150.84,150.78,3.79039311]
[1642036665512,2.652,150.84,150.79,0.26]
[1642036665712,2.912,150.85,150.79,0.26]
[1642036666115,3.162,150.85,150.79,0.26]
[1642036667014,0.51,150.85,150.78,6.26]
[1642036667216,0.26,150.85,150.78,6.51]
[1642036667915,0.26,150.85,150.78,6.26]
[1642036668446,0.26,150.85,150.78,0.26]
[1642036668647,2.652,150.84,150.78,0.26]
[1642036668848,2.652,150.84,150.78,6.26]
[1642036669047,2.902,150.84,150.78,0.26]
[1642036669449,2.652,150.84,150.78,6.26]
[1642036669651,2.652,150.84,150.78,0.51]
[1642036669852,0.26,150.85,150.78,0.51]
[1642036670651,0.26,150.85,150.78,6.51]
[1642036671351,25.7018,150.86,150.78,6.51]
[1642036671552,25.7018,150.86,150.79,31.67418014]
[1642036671755,23.0498,150.86,150.79,31.67418014]
[1642036671955,23.0498,150.86,150.8,0.26]
[1642036674653,23.0498,150.86,150.78,3.16]
[1642036674853,23.0498,150.86,150.79,6.0]
[1642036675255,23.0498,150.86,150.8,0.26]
[1642036676657,22.7998,150.86,150.8,0.26]
[1642036678759,22.7998,150.86,150.8,2.91]
[1642036678959,22.7998,150.86,150.81,6.0]
[1642036679162,22.7998,150.86,150.81,6.25]
[1642036679463,2.65,150.89,150.82,0.26]
[1642036679663,2.65,150.91,150.82,2.91]
[1642036679860,22.7098,150.9,150.82,2.91]
[1642036680061,28.7098,150.9,150.83,6.0]
[1642036680265,28.7098,150.9,150.83,6.25]
[1642036680463,28.7098,150.9,150.84,0.26]
[1642036681064,28.7098,150.9,150.83,0.25]
[1642036681263,28.7098,150.9,150.82,0.26]
[1642036681563,2.91,150.89,150.82,0.26]
[1642036681761,3.16,150.89,150.82,0.26]
[1642036682869,3.16,150.89,150.81,6.25]
[1642036683065,66.34,150.88,150.81,6.25]
[1642036683266,66.59,150.88,150.81,6.25]
[1642036683466,0.26,150.87,150.81,0.25]
[1642036683667,23.6647,150.87,150.79,8.9]
[1642036684267,23.6647,150.87,150.8,0.26]
[1642036684669,23.9147,150.87,150.8,0.26]
[1642036685069,23.6647,150.87,150.8,0.26]
[1642036685678,23.6647,150.87,150.79,6.26]
[1642036686069,23.6647,150.87,150.79,6.51]
[1642036687191,92.9047,150.87,150.79,6.51]
[1642036687395,90.2547,150.87,150.79,6.51]
[1642036687797,90.2547,150.87,150.79,0.51]
[1642036688002,90.2547,150.87,150.79,0.26]
[1642036689206,23.9147,150.87,150.79,0.26]
[1642036689502,23.4047,150.87,150.79,0.26]
[1642036689903,23.4047,150.87,150.8,2.65]
[1642036690304,23.4047,150.87,150.81,0.26]
[1642036691006,72.1354,150.89,150.81,0.26]
[1642036691203,95.2616,150.89,150.81,0.26]
[1642036691407,95.2616,150.89,150.81,6.26]
[1642036691704,95.2616,150.89,150.85,2.7685718]
[1642036691904,23.1262,150.89,150.86,0.26]
[1642036692603,23.1262,150.89,150.82,0.26]
[1642036694105,23.1262,150.89,150.81,6.25]
[1642036694106,89.4662,150.89,150.81,6.25]
[1642036694307,69.25,150.88,150.81,0.25]
[1642036694508,66.6,150.88,150.81,0.25]
[1642036694709,66.85,150.88,150.78,2.9]
[1642036695107,22.7459,150.87,150.78,2.9]
[1642036695307,22.7459,150.87,150.78,2.65]
[1642036695509,0.26,150.86,150.79,0.26]
[1642036695810,91.98744091,150.85,150.76,6.0]
[1642036696007,27.6095,150.84,150.76,6.0]
[1642036696208,27.8595,150.84,150.76,6.0]
[1642036696907,27.8595,150.84,150.77,0.26]
[1642036697508,27.6095,150.84,150.77,0.26]
[1642036698311,24.9575,150.84,150.77,0.26]
[1642036698508,74.9209,150.86,150.77,0.26]
[1642036699711,74.9209,150.86,150.78,2.652]
[1642036699910,74.9209,150.86,150.79,27.84231645]
[1642036700112,74.9209,150.86,150.79,33.84231645]
[1642036700312,74.9209,150.86,150.79,34.09231645]
[1642036701612,74.9209,150.86,150.79,6.51]
[1642036702014,74.9209,150.86,150.8,6.0]
[1642036702212,74.9209,150.86,150.8,6.25]
[1642036702411,74.9209,150.86,150.81,0.26]
[1642036702612,77.5729,150.86,150.81,0.26]
[1642036703011,77.5729,150.86,150.79,0.51]
[1642036703212,22.8541,150.85,150.79,0.51]
[1642036703412,22.8541,150.85,150.79,0.26]
[1642036704414,2.652,150.89,150.79,0.26]
[1642036704716,26.2332,150.89,150.79,0.26]
[1642036705414,26.89888786,150.88,150.79,0.26]
[1642036705644,27.14888786,150.88,150.79,0.26]
[1642036706249,24.9787,150.87,150.79,0.26]
[1642036706550,27.6287,150.87,150.79,0.26]
[1642036706747,27.8787,150.87,150.79,0.26]
[1642036710049,72.6,150.86,150.77,2.652]
[1642036710252,72.6,150.86,150.73,88.3186]
[1642036710253,27.0653,150.85,150.73,88.3186]
[1642036710451,0.26,150.84,150.77,6.0]
[1642036710652,2.652,150.83,150.74,29.9884]
[1642036711052,31.96637048,150.82,150.74,6.0]
[1642036711251,32.47637048,150.82,150.73,76.1666]
[1642036711453,27.1772,150.81,150.7,2.652]
[1642036711653,33.4272,150.81,150.69,2.653]
[1642036711851,33.4272,150.81,150.67,86.1579]
[1642036711852,0.26,150.8,150.68,2.653]
[1642036712153,2.653,150.79,150.68,30.39327806]
[1642036712651,2.903,150.79,150.68,30.64327806]
[1642036713052,0.26,150.78,150.69,3.78105155]
[1642036713250,0.26,150.78,150.69,4.03105155]
[1642036713451,24.1363,150.78,150.69,3.78105155]
[1642036713651,90.7263,150.78,150.7,0.26]
[1642036713850,2.653,150.77,150.68,6.43405155]
[1642036714254,30.76243765,150.76,150.68,6.43405155]
[1642036714452,30.76243765,150.76,150.68,3.78105155]
[1642036714652,31.01243765,150.76,150.68,4.03105155]
[1642036715351,31.01243765,150.76,150.69,0.26]
[1642036717053,30.76243765,150.76,150.69,0.28]
[1642036717656,31.01243765,150.76,150.69,0.28]
[1642036718355,31.01243765,150.76,150.69,0.02]
[1642036719556,24.8156,150.75,150.69,0.02]
[1642036719756,0.25,150.76,150.69,0.02]
[1642036720160,2.653,150.77,150.69,0.02]
[1642036720359,79.0006,150.79,150.7,2.653]
[1642036720761,79.0006,150.79,150.71,26.83365306]
[1642036721160,79.0006,150.79,150.71,27.08365306]
[1642036721460,79.0006,150.79,150.72,6.0]
[1642036721659,79.0006,150.79,150.77,2.7685718]
[1642036721861,6.06439994,150.78,150.77,2.7685718]
[1642036722261,6.06439994,150.78,150.77,0.26]
[1642036722860,6.06439994,150.78,150.72,2.903]
[1642036722861,6.06439994,150.78,150.73,0.26]
[1642036725463,6.06439994,150.78,150.72,0.51]
[1642036725663,6.31439994,150.78,150.72,0.26]
[1642036725864,2.653,150.77,150.71,0.02]